Cogmind - Beta 14 @@@ ROGUE MODE // 2025.03.29 @ 01:52:37 Player: opdo Result: Destroyed by Y-64 Sentinel with KE Penetrator Performance ------------- Evolutions (5) 2500 Regions Visited (22) 4400 Robots Destroyed (285) 1425 Value Destroyed (11580) 11580 Prototype IDs (24) 480 Alien Tech Used (0) 0 Bonus (5428) 5428 TOTAL SCORE: 25813 Bonus ------- High Alert Combat Kills 879 Follower Combat Kills 2033 Entered Garrisons 200 Network Hubs Disabled 200 Met Data Miner 300 Met Imprinter 300 Acquired ECA 300 Met Zhirov 300 A7 Reached Mainframe 300 Met R17 at Cetus 500 Read Decrypted Archives 300 Friendly Fire -184 Cogmind --------- Core Integrity 0/1000 Matter 77/300 Energy 40/100 System Corruption 33% Temperature Hot (210) Movement Core (350) Ox6 Location -5/Hub_04(d) Parts ------- > --- POWER (2) -------- (None) > --- PROPULSION (5) --- (None) > --- UTILITY (7) ------ Large Storage Unit Advanced Targeting Computer Experimental Armor Integrity Analyzer > --- WEAPON (3) ------- (None) > --- INVENTORY (15) --- Neutrino Core Advanced Terrain Scanner Hacking Drone Bay (1/1) Peak State ------------ > --- POWER ------------ Neutrino Core Quantum Reactor > --- PROPULSION ------- Centrium Heavy Treads Centrium Heavy Treads > --- UTILITY ---------- Huge Storage Unit Advanced Targeting Computer Experimental Armor Integrity Analyzer Centrium Medium Armor Plating Improved Thermal Shield Force Field > --- WEAPON ----------- KE Penetrator Advanced KE Penetrator Hypervelocity Gauss Cannon > --- INVENTORY -------- Light Angular Momentum Engine Fission Core Neutrino Core Armored Wheel Large Storage Unit Matter Compressor Advanced Sensor Array Advanced Signal Interpreter Advanced Terrain Scanner Encrypted Comm Array Improved Medium Armor Plating Centrium Medium Armor Plating Centrium Medium Armor Plating Hacking Drone Bay Autogun Proton Missile Launcher Phasing Sabre [Rating: 113] Favorites ----------- Power Neutrino Core Engine Improved Deuterium Engine Power Core Neutrino Core Reactor Quantum Reactor Propulsion Improved Treads Treads Improved Treads Leg Flexi-carbon Leg Wheel Armored Wheel Hover Unit Gravmag System Utility Advanced Targeting Computer Device Encrypted Comm Array Storage Huge Storage Unit Processor Advanced Targeting Computer Hackware System Shield Protection Improved Light Armor Plating Weapon Gauss Rifle Energy Gun Small Laser Ballistic Gun Gauss Rifle Ballistic Cannon Gauss Cannon Launcher Improved Grenade Launcher Slashing Weapon Makeshift Sword Piercing Weapon Spear Build | -11 -10 -10 -9 -9 -8 -8 -8 -7 -7 -7 -7 -6 -6 -6 -6 -6 -5 -5 -5 -5 -5 -5 ------- Run | Yrd Mat Min Mat Min Mat Gar Mat Fac Low Low Dat Pro Fac Low Low Zio Pro Fac Ext Cet Arc Hub Slots Evolved 10 | . . . 2 . 2 . . 2 . . . . 2 . . . . 2 . . . . Power 1 | . . . . . . . . 1 . . . . . . . . . . . . . . Propulsion 3 | . . . 2 . . . . . . . . . 1 . . . . . . . . . Utility 5 | . . . . . 2 . . 1 . . . . . . . . . 2 . . . . Weapon 1 | . . . . . . . . . . . . . 1 . . . . . . . . . Parts Attached 399 | 7 18 10 31 . 22 28 24 29 9 9 . 23 46 6 16 9 14 20 45 13 . 20 Power 39 | 1 1 2 5 . 1 3 3 2 1 . . 2 6 1 1 . 2 2 4 1 . 1 Engine 21 | 1 1 2 4 . 1 1 2 2 1 . . 2 2 1 . . 1 . . . . . Core 17 | . . . 1 . . 2 1 . . . . . 4 . 1 . 1 2 4 . . 1 Reactor 1 | . . . . . . . . . . . . . . . . . . . . 1 . . Propulsion 130 | 2 7 2 16 . 7 7 8 7 1 4 . 4 18 1 6 1 6 6 21 4 . 2 Treads 94 | . . 2 12 . 7 7 8 7 1 4 . 4 6 . 4 . 3 3 20 4 . 2 Leg 27 | 2 7 . 4 . . . . . . . . . 7 . 1 . 3 2 1 . . . Wheel 4 | . . . . . . . . . . . . . 3 . 1 . . . . . . . Hover 5 | . . . . . . . . . . . . . 2 1 . 1 . 1 . . . . Flight . | . . . . . . . . . . . . . . . . . . . . . . . Utility 102 | 2 5 3 2 . 6 5 5 7 . 4 . 7 10 2 4 8 1 6 9 3 . 13 Device 44 | 1 2 1 1 . 1 2 1 1 . 1 . 1 4 1 3 5 . 6 7 . . 6 Storage 7 | 1 1 1 . . 1 . . . . . . . 2 . . . . . . . . 1 Processor 7 | . . . . . 1 . 1 1 . . . . 2 . . 1 1 . . . . . Hackware 2 | . . . . . . 1 . . . . . . . . . 1 . . . . . . Protection 42 | . 2 1 1 . 3 2 3 5 . 3 . 6 2 1 1 1 . . 2 3 . 6 Artifact . | . . . . . . . . . . . . . . . . . . . . . . . Weapon 128 | 2 5 3 8 . 8 13 8 13 7 1 . 10 12 2 5 . 5 6 11 5 . 4 Energy Gun 3 | 2 . . . . . . . . . . . . . . . . . . . 1 . . Energy Cannon . | . . . . . . . . . . . . . . . . . . . . . . . Ballistic Gun 90 | . 5 3 8 . 6 7 8 8 2 . . 7 10 2 2 . 4 5 8 3 . 2 Ballistic Cannon 10 | . . . . . 1 . . . 3 1 . . . . . . 1 . 3 . . 1 Launcher 14 | . . . . . 1 3 . 2 1 . . 3 2 . 2 . . . . . . . Special Weapon . | . . . . . . . . . . . . . . . . . . . . . . . Impact Weapon . | . . . . . . . . . . . . . . . . . . . . . . . Slashing Weapon 10 | . . . . . . 3 . 3 . . . . . . 1 . . 1 . 1 . 1 Piercing Weapon 1 | . . . . . . . . . 1 . . . . . . . . . . . . . Special Melee Weapon . | . . . . . . . . . . . . . . . . . . . . . . . Unidentified Prototypes 12 | . . . 2 . . . 1 . . . . . . . . 4 . 1 . 4 . . Corrupted Parts 5 | . . . . . . . . . . . . . . 1 2 . . . . 2 . . System Corruption 27 | . . . . . . . . . . . . . . 7 13 . . . . 7 . . Parts Lost 148 | . 2 4 . . 7 10 8 11 2 6 . 12 23 . 7 1 6 6 20 2 . 21 Power 20 | . 1 1 . . . 1 2 2 . . . 2 3 . 1 . . 2 2 . . 3 Propulsion 56 | . . . . . 2 3 1 5 1 3 . 3 11 . 4 . 3 3 9 2 . 6 Utility 34 | . . 1 . . 3 4 4 3 . 3 . 4 1 . 1 1 1 . 2 . . 6 Weapon 38 | . 1 2 . . 2 2 1 1 1 . . 3 8 . 1 . 2 1 7 . . 6 Highest Loss Streak 16 | . 2 4 . . 6 5 3 3 2 5 . 9 10 . 3 1 5 3 7 2 . 16 To Critical Strikes 4 | . . . . . . . . . . . . . . . . . . . 3 1 . . Average Slot Usage (%) 92 | . 99 95 99 100 93 94 98 87 83 90 92 86 95 89 84 93 87 88 96 86 88 78 Engine 4 | . 14 10 8 11 9 4 6 7 8 7 7 7 6 4 . . 1 . . . . . Core 4 | . . . 2 . . 4 2 . . . . . 4 6 6 13 11 6 10 5 5 4 Treads 22 | . . 22 41 44 35 35 36 27 27 29 30 27 22 . 7 13 6 8 23 22 23 16 Leg 4 | . 28 5 2 . . . . . . . . . 3 13 10 6 18 13 2 . . . Wheel 1 | . . . . . . . . . . . . . 1 13 5 6 . . . . . . Device 4 | . 5 11 1 . . 3 3 1 . 2 7 4 4 . 2 10 . 11 10 . . 4 Storage 7 | . 14 14 11 11 9 9 9 7 7 7 7 7 5 6 6 6 6 5 5 5 5 4 Processor 14 | . . . . . 9 9 16 15 15 15 15 15 18 20 20 14 22 23 23 21 17 15 Protection 5 | . 8 2 9 11 11 9 6 10 7 11 7 7 2 5 1 . . . . 6 11 6 Ballistic Gun 15 | . 24 27 22 22 15 15 17 14 7 3 . 7 19 11 14 13 16 15 13 14 17 14 Ballistic Cannon 1 | . . . . . 2 . . . 6 10 15 7 . . . . . . 2 . . . Peak Build Rating 113 | 9 10 13 22 21 38 38 39 42 43 47 47 50 62 61 63 70 72 95 93 104 103 113 Average Rating 49 | 5 8 11 17 21 29 31 34 38 39 42 47 43 56 54 54 61 64 80 85 93 103 100 On Entrance 46 | . 9 8 13 21 21 38 28 36 42 40 47 47 38 49 61 60 70 71 90 69 103 103 Naked Turns . | . . . . . . . . . . . . . . . . . . . . . . . Heaviest Build 154 | 14 18 51 57 57 109 109 96 111 123 115 110 115 118 116 120 120 124 125 128 149 149 154 Greatest Support 180 | 20 20 40 83 83 112 112 94 88 84 97 94 102 112 20 40 12 50 79 131 149 149 180 Greatest Overweight (x) 11 | . 1 1 1 . . 1 1 1 1 2 1 1 10 5 11 9 10 4 1 2 . 2 Average Overweight (x) 2 | . . . . . . . . 1 1 1 1 1 1 5 5 9 3 1 . . . . Largest Inventory Capacity 25 | 8 10 20 20 20 25 25 25 25 25 25 25 25 25 25 25 25 25 25 25 25 25 25 Average Capacity 23 | 6 9 18 20 20 20 25 25 25 25 25 25 25 24 25 25 25 25 25 25 25 25 24 Most Carried 25 | 5 10 20 20 20 25 25 25 25 25 25 25 25 25 25 25 25 25 25 25 25 25 25 Average Carried 23 | 2 9 17 19 20 20 24 24 24 24 24 25 23 23 24 24 24 24 24 24 24 25 20 Final Capacity 25 | 8 10 20 20 20 25 25 25 25 25 25 25 25 25 25 25 25 25 25 25 25 25 15 Final Carried 25 | 4 10 20 20 20 25 25 24 25 25 25 25 22 25 24 25 25 25 24 23 25 25 3 Class Distribution -------------------- 55% | Mutant 13% | Gunner 13% | Scavenger-Gunner 13% | Scavenger-Mutant 4% | Commander-Gunner Dominant Class ---------------- Mutant | -10/Materials Mutant | -10/Mines Scavenger-Mutant | -9/Materials Mutant | -9/Mines Mutant | -8/Materials Mutant | -8/Garrison Mutant | -8/Materials Mutant | -7/Factory Mutant | -7/Lower Caves Mutant | -7/Lower Caves Mutant | -7/Data Miner Mutant | -6/Proximity Caves Gunner | -6/Factory Scavenger-Mutant | -6/Lower Caves Scavenger-Gunner | -6/Lower Caves Mutant | -6/Zion Scavenger-Gunner | -5/Proximity Caves Gunner | -5/Factory Commander-Gunner | -5/Extension Commander-Gunner | -5/Cetus Scavenger-Gunner | -5/Archives Scavenger-Gunner | -5/Hub_04(d) Resources | -11 -10 -10 -9 -9 -8 -8 -8 -7 -7 -7 -7 -6 -6 -6 -6 -6 -5 -5 -5 -5 -5 -5 ----------- Run | Yrd Mat Min Mat Min Mat Gar Mat Fac Low Low Dat Pro Fac Low Low Zio Pro Fac Ext Cet Arc Hub Matter Collected 11144 | 201 333 236 672 38 665 795 648 1019 321 434 . 664 1505 148 377 110 574 642 912 229 . 621 Remotely . | . . . . . . . . . . . . . . . . . . . . . . . Salvage Created 11119 | 15 426 140 686 49 829 1051 769 976 133 172 . 414 1188 50 653 . 499 821 1033 129 . 1086 Parts 601 | 3 36 11 54 4 43 59 50 60 3 11 . 14 55 3 29 . 20 51 42 1 . 52 Haulers Intercepted 12 | . . . 3 . 2 . 3 1 . . . . 2 . . . . 1 . . . . Recyclers Shooed 13 | . . . 1 . 2 . . 1 . . . . 5 . . . . 3 1 . . . Parts Field Recycled . | . . . . . . . . . . . . . . . . . . . . . . . Retrieved Matter . | . . . . . . . . . . . . . . . . . . . . . . . Parts Self-Destructed 79 | . . . . . . . . . 2 11 . 22 . 1 18 4 21 . . . . . Prevented 11 | . . . . . . . . . . . . 2 . . 9 . . . . . . . Kills | -11 -10 -10 -9 -9 -8 -8 -8 -7 -7 -7 -7 -6 -6 -6 -6 -6 -5 -5 -5 -5 -5 -5 ------- Run | Yrd Mat Min Mat Min Mat Gar Mat Fac Low Low Dat Pro Fac Low Low Zio Pro Fac Ext Cet Arc Hub Combat Hostiles Destroyed 241 | . 15 8 16 1 22 25 17 24 5 5 . 13 20 1 10 . 11 15 13 2 . 18 Guns 197 | . 15 8 15 1 15 22 17 18 2 2 . 4 19 1 4 . 9 15 11 2 . 17 Cannons 20 | . . . . . 4 . . . 2 3 . 6 . . . . 2 . 2 . . 1 AOE 24 | . . . 1 . 3 3 . 6 1 . . 3 1 . 6 . . . . . . . Classes Destroyed 21 | 1 3 . 5 1 3 3 . 1 1 1 . 1 . . . . 1 . . . . . Worker 10 | . . . 1 . 1 . 4 1 . . . . 1 . . . . . . . . 2 Builder 6 | . . . . . . . . 1 . . . . 2 . . . . 1 2 . . . Tunneler 2 | 1 . . . . . . . . . . . . 1 . . . . . . . . . Hauler 12 | . . . 3 . 2 . 3 1 . . . . 2 . . . . 1 . . . . Recycler 4 | . . . 1 . . . . . . . . . 2 . . . . . 1 . . . Minesweeper 1 | . . . . . . . . . . . . 1 . . . . . . . . . . Mechanic 2 | . . . 1 . . . . . . . . . 1 . . . . . . . . . Operator 5 | . 1 . . . . . . . . . . . 1 . . . . 1 1 . . 1 Drone 2 | . . . . . . . . . . . . . . . . . 2 . . . . . Watcher 2 | . . . . . 1 . 1 . . . . . . . . . . . . . . . Swarmer 65 | . 9 7 8 . 8 1 7 4 . . . 1 . . 6 . . 8 2 . . 4 Cutter 3 | . . . . . . 3 . . . . . . . . . . . . . . . . Grunt 89 | . 6 1 6 . 9 13 2 9 4 3 . 9 3 . 3 . 4 2 6 . . 9 Brawler 2 | . . . . . . 1 . . . . . 1 . . . . . . . . . . Duelist 6 | . . . . 1 . 1 1 3 . . . . . . . . . . . . . . Sentry 30 | . . . 2 . 3 4 6 4 . . . . 4 . 1 . 1 . 5 . . . Hunter 12 | . . . . . 1 . 1 2 . . . . 7 . . . . 1 . . . . Programmer 22 | . . . . . . 2 . 2 . 1 . 1 5 1 . . 4 4 . . . 2 Heavy 2 | . . . . . 1 . . . . . . . 1 . . . . . . . . . Behemoth 3 | . . . . . . . . . . 1 . 1 . . . . . . . . . 1 Cetus Guard 2 | . . . . . . . . . . . . . . . . . . . . 2 . . Lightning 2 | . . . . . . . . . . . . . . . . . . . . . . 2 Packrat 3 | . . . . . . . . . . . . . . . 3 . . . . . . . Thief 1 | . . . . . . . . . 1 . . . . . . . . . . . . . Best Kill Streak 9 | 1 3 2 6 1 5 4 3 9 4 2 . 4 6 1 4 . 3 5 3 1 . 7 Combat Bots Only 8 | . 3 2 4 1 4 4 2 8 4 2 . 4 4 1 4 . 3 5 3 1 . 7 Max Kills in Single Turn 4 | 1 1 1 3 1 2 1 2 4 1 1 . 2 2 1 2 . 1 2 2 1 . 2 Gunslinging 1 | . . . 1 . . . . . . . . . . . . . . 1 . . . 1 Exploded 3 | . . . 1 . 2 1 . 3 1 . . 1 1 . 2 . . . . . . . Melee . | . . . . . . . . . . . . . . . . . . . . . . . Uniques/NPCs Destroyed . | . . . . . . . . . . . . . . . . . . . . . . . Combat | -11 -10 -10 -9 -9 -8 -8 -8 -7 -7 -7 -7 -6 -6 -6 -6 -6 -5 -5 -5 -5 -5 -5 -------- Run | Yrd Mat Min Mat Min Mat Gar Mat Fac Low Low Dat Pro Fac Low Low Zio Pro Fac Ext Cet Arc Hub Hostile Shots Fired 2431 | . 86 84 109 3 105 164 155 279 42 72 . 185 357 4 84 . 90 85 194 33 . 300 Missed 658 | . 31 21 30 . 29 39 51 89 10 20 . 55 111 1 33 . 20 26 40 7 . 45 Damage Taken 28290 | . 496 579 957 42 1460 1925 1294 1877 541 910 . 2578 3311 46 784 . 1470 1031 3069 660 . 5260 Core 2941 | . 58 125 222 27 79 192 111 187 47 45 . 324 300 . 50 . 171 54 165 23 . 761 Absorbed by Shields 722 | . . . . . 64 . . 316 . . . . . . . . . . . 111 . 231 Reduced by Siege Mode 204 | . . . . . . . . . . . . . . . . . . . . . . 204 Redirected to Shielding 37 | . . 12 . . 22 . . 3 . . . . . . . . . . . . . . Ignored by Resistances 423 | . . . . . . . . . . 32 . . . . . . . . 95 . . 296 Regen/Repaired (Parts) 1431 | . . . . . . . . . . . . . 519 . . 912 . . . . . . Core Remaining (%) 40 | 100 . 26 . 37 . . 30 . . . . 13 . . . . 38 . . . . . Volleys Fired 782 | 1 63 28 70 3 68 81 62 68 17 26 . 49 63 1 13 . 36 35 34 9 . 55 Largest 3 | 2 2 2 2 2 2 2 2 2 2 2 . 2 3 3 3 . 3 3 3 3 . 3 Hottest 240 | 90 90 40 46 46 74 53 53 67 69 96 . 96 92 86 104 . 108 95 123 240 . 129 Shots Fired 1762 | 2 125 55 140 6 134 155 127 134 34 52 . 93 187 4 39 . 95 104 100 23 . 153 Gun 1571 | 2 125 55 140 6 110 150 127 132 18 17 . 40 180 4 30 . 82 104 83 23 . 143 Cannon 158 | . . . . . 21 . . . 15 35 . 47 . . . . 13 . 17 . . 10 Launcher 33 | . . . . . 3 5 . 2 1 . . 6 7 . 9 . . . . . . . Special . | . . . . . . . . . . . . . . . . . . . . . . . Kinetic 1717 | . 117 55 140 6 131 150 127 132 33 52 . 87 180 4 30 . 95 104 100 21 . 153 Thermal 12 | 2 8 . . . . . . . . . . . . . . . . . . 2 . . Explosive 25 | . . . . . 3 5 . 2 1 . . 6 7 . 1 . . . . . . . Electromagnetic 8 | . . . . . . . . . . . . . . . 8 . . . . . . . Robot Hit Streak 24 | 2 14 4 10 5 23 19 20 13 11 9 . 12 14 2 11 . 12 7 24 9 . 23 Robot Miss Streak 14 | . 9 3 3 1 5 3 3 4 4 2 . 6 3 . 2 . 3 2 14 1 . 5 Penetration Max 3 | . . . . . . . . . . . . 1 1 . . . . 1 3 1 . 1 Secondary Targets 27 | . 1 2 4 . 1 3 2 . . . . . 1 . 1 . 2 4 1 2 . 3 Max Gunslinging Chain 1 | . 1 1 1 . 1 1 1 . . . . . 1 . 1 . 1 1 1 1 . 1 Shots Hit Robots 1259 | 2 70 29 92 5 102 126 96 113 27 35 . 66 140 2 27 . 58 65 76 18 . 110 Core Hits 718 | 1 29 14 38 2 67 54 35 87 22 12 . 39 96 1 20 . 23 36 66 13 . 63 Critical Kills 21 | . . . 1 . . . . 1 . . . 1 . . 1 . . 6 7 1 . 3 Critical Parts Destroyed 28 | . 1 . . . 1 . 1 4 1 . . . . . 1 . . 3 9 1 . 6 Critical Strikes 56 | . 1 . 1 . 1 . 1 5 1 2 . 6 . . 2 . . 9 16 2 . 9 Destroy 49 | . 1 . 1 . 1 . 1 5 1 . . 1 . . 2 . . 9 16 2 . 9 Blast 7 | . . . . . . . . . . 2 . 5 . . . . . . . . . . Melee Attacks 24 | . . . . . . 9 . 4 . . . . . . 6 1 . . . 3 . 1 Impact . | . . . . . . . . . . . . . . . . . . . . . . . Slashing 24 | . . . . . . 9 . 4 . . . . . . 6 1 . . . 3 . 1 Piercing . | . . . . . . . . . . . . . . . . . . . . . . . Sneak Attacks 3 | . . . . . . . . . . . . . . . 3 . . . . . . . Combat Hostiles . | . . . . . . . . . . . . . . . . . . . . . . . Follow-up Attacks . | . . . . . . . . . . . . . . . . . . . . . . . Damage Inflicted 27830 | 27 585 339 1440 73 1952 2526 1792 2657 688 957 . 2339 3579 54 910 . 1373 1361 2114 473 . 2591 Guns 20291 | 23 578 339 1136 73 1146 2120 1657 1992 224 214 . 573 2962 54 276 . 1161 1352 1456 473 . 2482 Cannons 3217 | . . . . . 493 . . . 282 743 . 930 . . . . 212 . 448 . . 109 Explosions 3492 | . . . 274 . 297 406 . 604 182 . . 836 539 . 354 . . . . . . . Melee 280 | . . . . . . . . . . . . . . . 280 . . . . . . . Ramming 550 | 4 7 . 30 . 16 . 135 61 . . . . 78 . . . . 9 210 . . . Kinetic 23441 | . 534 339 1136 73 1639 2120 1657 1992 506 957 . 1503 2962 54 276 . 1373 1352 1904 473 . 2591 Thermal 284 | 23 44 . . . . . . 217 . . . . . . . . . . . . . . Explosive 2933 | . . . 274 . 297 406 . 387 182 . . 836 539 . 12 . . . . . . . Electromagnetic 342 | . . . . . . . . . . . . . . . 342 . . . . . . . Impact . | . . . . . . . . . . . . . . . . . . . . . . . Slashing 280 | . . . . . . . . . . . . . . . 280 . . . . . . . Piercing . | . . . . . . . . . . . . . . . . . . . . . . . Highest Corruption 33 | . . . . . . 3 3 1 1 3 3 7 4 11 24 24 7 6 6 13 13 33 Average Corruption 5 | . . . . . . 2 3 1 1 2 3 5 3 9 22 24 6 1 6 8 13 15 Corruption Purged . | . . . . . . . . . . . . . . . . . . . . . . . Corruption Blocked . | . . . . . . . . . . . . . . . . . . . . . . . Effects 331 | . . . . . . 23 36 8 6 23 3 24 14 14 38 5 50 7 42 15 2 21 Message Errors 74 | . . . . . . 5 9 . 1 3 1 12 3 2 9 2 13 3 7 2 . 2 Matter Fused 75 | . . . . . . 7 11 . 2 2 1 1 3 3 10 . 12 . 14 2 . 7 Heat Flow Errors 39 | . . . . . . 4 3 4 1 1 . . 3 3 2 . 4 . 5 3 2 4 Energy Discharges 42 | . . . . . . 4 . 2 . 6 . 5 1 1 8 1 5 1 6 1 . 1 Parts Rejected 5 | . . . . . . . . . . . . 1 . . . . 1 . 2 . . 1 Parts Fused 8 | . . . . . . 1 2 . . . . . . . 1 1 1 . . 2 . . Data Loss (minor) 44 | . . . . . . . 6 2 1 10 . 1 2 3 4 . 6 1 6 2 . . Data Loss (major) 10 | . . . . . . . 2 . 1 1 . 1 . 1 1 . 1 . . 2 . . Misfires 18 | . . . . . . . 3 . . . . 3 1 1 2 . 3 1 2 . . 2 Alerts 9 | . . . . . . 2 . . . . 1 . 1 . . 1 3 . . 1 . . Misdirections 2 | . . . . . . . . . . . . . . . 1 . . . . . . 1 Weapon Failures 5 | . . . . . . . . . . . . . . . . . 1 1 . . . 3 Overload Shots 1 | . . . . . . . . . . . . . . . . . . . . 1 . . Overflow Damage 319 | . . . 7 . . . 14 41 . 24 . 20 28 . 154 . . . 31 . . . Projectiles 28 | . . . . . . . . . . 24 . 4 . . . . . . . . . . Explosions 106 | . . . 7 . . . . 41 . . . 16 28 . 14 . . . . . . . Melee 185 | . . . . . . . 14 . . . . . . . 140 . . . 31 . . . Knockbacks 50 | . . . . . 11 . . 1 9 3 . 4 . . . . 3 . 16 . . 3 Impact 3 | . . . . . . . . 1 . . . . . . . . . . 2 . . . Kinetic 45 | . . . . . 11 . . . 9 3 . 4 . . . . 3 . 12 . . 3 Secondary 2 | . . . . . . . . . . . . . . . . . . . 2 . . . Self-Inflicted Damage 348 | . . . 113 . 37 3 . 74 52 . . 35 . . 34 . . . . . . . Shots 9 | . . . 1 . 2 1 . 2 1 . . 1 . . 1 . . . . . . . Rammed 27 | . . . 3 . . . 6 3 . . . . 4 . . . . . 11 . . . Targets Rammed 40 | 1 2 . 4 . 1 . 9 4 . . . . 6 . . . . 1 12 . . . Kicked 5 | 1 2 . . . . . . . . . . . 1 . . . . 1 . . . . Crushed 8 | . . . 1 . 1 . 3 1 . . . . 1 . . . . . 1 . . . Highest Temperature 647 | 30 60 6 56 1 59 178 207 194 312 308 . 267 274 151 200 . 524 81 277 288 281 647 Average Temperature 99 | 18 11 3 8 1 16 28 24 58 134 131 . 98 79 58 72 . 197 35 82 93 160 192 Received Heat Transfer 6088 | . 120 87 306 24 375 819 243 532 261 213 . 679 375 . 189 . 207 27 651 49 . 931 Effects 29 | . . . . . . . . . . . . 1 1 . . . 17 . . . . 10 Shutdowns 10 | . . . . . . . . . . . . . . . . . 6 . . . . 4 Energy Bleed 4 | . . . . . . . . . . . . 1 1 . . . 1 . . . . 1 Interference 6 | . . . . . . . . . . . . . . . . . 5 . . . . 1 Matter Decay 2 | . . . . . . . . . . . . . . . . . . . . . . 2 Short Circuit 3 | . . . . . . . . . . . . . . . . . 1 . . . . 2 Damage (minor) 2 | . . . . . . . . . . . . . . . . . 2 . . . . . Damage (major) 2 | . . . . . . . . . . . . . . . . . 2 . . . . . Siege Activations 4 | . . . . . . . . . . . . . . . . . . . . 1 . 3 Total Turns 71 | . . . . . . . . . . . . . . . . . . . . 2 . 69 Longest Duration 28 | . . . . . . . . . . . . . . . . . . . . 2 . 28 Robots Corrupted 2 | . . . . . . . 1 . . . . . . . . . . . 1 . . . Combat Hostiles . | . . . . . . . . . . . . . . . . . . . . . . . Parts Fried 2 | . . . . . . . . . . . . . . . 1 . . . 1 . . . Impact Corruptions 4 | . . . . . . . 1 . . . . . . . . . . . 3 . . . Robots Melted . | . . . . . . . . . . . . . . . . . . . . . . . Combat Hostiles . | . . . . . . . . . . . . . . . . . . . . . . . Parts Melted 8 | 1 . . . . . . . . . . . 1 . . . . 1 1 1 . . 3 Heat Transferred 324 | 62 112 . . . . . . 150 . . . . . . . . . . . . . . Parts Sabotaged . | . . . . . . . . . . . . . . . . . . . . . . . Parts Stolen 1 | . . . . . . . . . 1 . . . . . . . . . . . . . Parts Stripped . | . . . . . . . . . . . . . . . . . . . . . . . Power Chain Reactions . | . . . . . . . . . . . . . . . . . . . . . . . Alert | -11 -10 -10 -9 -9 -8 -8 -8 -7 -7 -7 -7 -6 -6 -6 -6 -6 -5 -5 -5 -5 -5 -5 ------- Run | Yrd Mat Min Mat Min Mat Gar Mat Fac Low Low Dat Pro Fac Low Low Zio Pro Fac Ext Cet Arc Hub Peak Influence 1027 | 5 257 120 236 154 358 1027 668 539 . . . . 235 . . . . 459 910 723 358 639 Initial 500 | . 3 55 46 45 59 232 500 284 . . . . 119 . . . . 300 146 462 209 125 Average 284 | . 139 103 118 126 184 666 510 395 . . . . 63 . . . . 282 345 576 241 362 Maximum Alert Level 3 | . 1 . 1 . 1 3 2 2 . . . . 1 . . . . 2 3 3 1 2 Low Security (%) 45 | 100 77 100 89 100 58 . . . . . . . 92 . . . . 17 25 . . 26 Level 1 24 | . 22 . 10 . 41 7 13 59 . . . . 7 . . . . 73 39 . 100 33 Level 2 25 | . . . . . . 34 86 40 . . . . . . . . . 8 33 97 . 39 Level 3 4 | . . . . . . 57 . . . . . . . . . . . . 1 2 . . Level 4 . | . . . . . . . . . . . . . . . . . . . . . . . Level 5 . | . . . . . . . . . . . . . . . . . . . . . . . High Security . | . . . . . . . . . . . . . . . . . . . . . . . Max Security . | . . . . . . . . . . . . . . . . . . . . . . . Squads Dispatched 37 | . 4 . 2 . 2 . 1 6 . . . 1 10 . . . . 3 2 . . 6 Investigation 8 | . 2 . . . 1 . . . . . . 1 1 . . . . . . . . 3 Extermination 10 | . . . . . . . . 2 . . . . 5 . . . . 2 . . . 1 Reinforcement 12 | . 2 . 2 . 1 . . 1 . . . . 2 . . . . 1 2 . . 1 Assault 2 | . . . . . . . . 1 . . . . . . . . . . . . . 1 Garrison 5 | . . . . . . . 1 2 . . . . 2 . . . . . . . . . Intercept . | . . . . . . . . . . . . . . . . . . . . . . . Searches Triggered . | . . . . . . . . . . . . . . . . . . . . . . . Data Miner Redirects 1 | . . . . . . . . . . . . . . . . . . . . . . 1 Construction Impeded . | . . . . . . . . . . . . . . . . . . . . . . . Haulers Reinforced 1 | . . . . . . . . . . . . . . . . . . 1 . . . . Active Scanning Responses . | . . . . . . . . . . . . . . . . . . . . . . . Cargo Convoy Interrupts 1 | . . . . . . . . . . . . . 1 . . . . . . . . . Stealth | -11 -10 -10 -9 -9 -8 -8 -8 -7 -7 -7 -7 -6 -6 -6 -6 -6 -5 -5 -5 -5 -5 -5 --------- Run | Yrd Mat Min Mat Min Mat Gar Mat Fac Low Low Dat Pro Fac Low Low Zio Pro Fac Ext Cet Arc Hub Distress Signals 19 | . 1 . 2 . 3 . 5 3 . . . . . . . . . . 1 2 . 2 Communications Jammed 22 | . . . . . . . . . . . . . . . . . . 2 20 . . . Distress Signals 22 | . . . . . . . . . . . . . . . . . . 2 20 . . . Times Spotted 415 | . 30 11 53 6 31 28 28 34 6 6 . 19 27 1 11 . 15 19 41 10 6 33 Peak Tracking Total 11 | . 4 3 8 3 5 4 5 6 4 3 . 6 4 1 4 . 5 5 8 5 8 11 Tactical Retreats 18 | . 2 2 1 . 1 1 2 . . 1 . . 1 . 1 . 2 1 2 . 1 . Traps | -11 -10 -10 -9 -9 -8 -8 -8 -7 -7 -7 -7 -6 -6 -6 -6 -6 -5 -5 -5 -5 -5 -5 ------- Run | Yrd Mat Min Mat Min Mat Gar Mat Fac Low Low Dat Pro Fac Low Low Zio Pro Fac Ext Cet Arc Hub Traps Triggered 13 | . 5 . 2 . 1 . . . . . . . . . 1 . . . 4 . . . Indirectly . | . . . . . . . . . . . . . . . . . . . . . . . Trap Hack Attempts . | . . . . . . . . . . . . . . . . . . . . . . . Triggered . | . . . . . . . . . . . . . . . . . . . . . . . Disarmed . | . . . . . . . . . . . . . . . . . . . . . . . Reprogrammed . | . . . . . . . . . . . . . . . . . . . . . . . Reused 2 | . . . . . . . . . . . . 2 . . . . . . . . . . Traps Extracted . | . . . . . . . . . . . . . . . . . . . . . . . Installed 3 | . . . . . . . . . . . . 3 . . . . . . . . . . Triggered 3 | . . . . . . . . . . . . 2 1 . . . . . . . . . Most Traps Carried 2 | . . 2 2 1 1 1 1 1 1 . . 2 2 2 2 1 1 . . . . . Machines | -11 -10 -10 -9 -9 -8 -8 -8 -7 -7 -7 -7 -6 -6 -6 -6 -6 -5 -5 -5 -5 -5 -5 ---------- Run | Yrd Mat Min Mat Min Mat Gar Mat Fac Low Low Dat Pro Fac Low Low Zio Pro Fac Ext Cet Arc Hub Machines Disabled 26 | . . . 2 . 1 4 2 6 . . . 1 . . . . . 2 2 1 1 4 Max in Single Turn 5 | . . . 2 . 1 1 1 5 . . . 1 . . . . . 1 1 1 . 1 Garrison Access 3 | . . . . . . . 1 1 . . . . . . . . . 1 . . . . Garrison Relay 3 | . . . . . . 3 . . . . . . . . . . . . . . . . Network Hub 1 | . . . . . . . . . . . . . . . . . . . . . . 1 Machines Repaired . | . . . . . . . . . . . . . . . . . . . . . . . Machines Dismantled . | . . . . . . . . . . . . . . . . . . . . . . . Machines Sabotaged 1 | . . . . . . . . . . . . . . . . . . . . . . 1 Overloaded Fab Kills . | . . . . . . . . . . . . . . . . . . . . . . . Hacking | -11 -10 -10 -9 -9 -8 -8 -8 -7 -7 -7 -7 -6 -6 -6 -6 -6 -5 -5 -5 -5 -5 -5 --------- Run | Yrd Mat Min Mat Min Mat Gar Mat Fac Low Low Dat Pro Fac Low Low Zio Pro Fac Ext Cet Arc Hub Machines Accessed 66 | . 4 1 10 1 5 2 10 7 1 . 4 1 10 . 2 . . 6 . 1 1 . Terminals 41 | . 4 . 8 1 2 2 8 3 . . . 1 6 . 1 . . 4 . 1 . . Fabricators 5 | . . . . . . . . 1 . . . . 3 . . . . 1 . . . . Repair Stations 2 | . . . 1 . . . . . . . . . 1 . . . . . . . . . Recycling Units 5 | . . . 1 . 1 . 1 2 . . . . . . . . . . . . . . Scanalyzers 1 | . . . . . 1 . . . . . . . . . . . . . . . . . Garrison Access 4 | . . . . . 1 . 1 1 . . . . . . . . . 1 . . . . Total Hacks 209 | . 13 1 23 3 14 3 30 18 1 . 30 6 26 . 2 . . 10 . 1 25 3 Successful 136 | . 6 1 14 1 6 2 10 7 1 . 30 6 18 . 2 . . 4 . 1 25 2 Failed 72 | . 7 . 8 2 8 1 20 11 . . . . 8 . . . . 6 . . . 1 Catastrophic 12 | . 1 . 1 . 1 . 4 3 . . . . 2 . . . . . . . . . Database Lockouts 1 | . . . 1 . . . . . . . . . . . . . . . . . . . Manual 99 | . 13 . 15 . 8 . 23 12 . . . . 17 . . . . 8 . . . 3 Terminals 115 | . 13 . 19 3 8 3 23 11 . . . 6 17 . 1 . . 7 . 1 . 3 Fabricators 9 | . . . . . . . . 1 . . . . 7 . . . . 1 . . . . Repair Stations 4 | . . . 2 . . . . . . . . . 2 . . . . . . . . . Recycling Units 14 | . . . 2 . 3 . 6 3 . . . . . . . . . . . . . . Scanalyzers 2 | . . . . . 2 . . . . . . . . . . . . . . . . . Garrison Access 7 | . . . . . 1 . 1 3 . . . . . . . . . 2 . . . . Terminal Hacks 83 | . 1 1 5 1 . 2 3 1 1 . 30 6 4 . 2 . . . . 1 25 . Record 45 | . . . . . . . . . 1 . 11 6 . . 1 . . . . 1 25 . Part Schematic 13 | . . . . . . . . . . . 13 . . . . . . . . . . . Robot Schematic 3 | . . . . . . . . . . . 3 . . . . . . . . . . . Robot Analysis 2 | . . . 1 . . . 1 . . . . . . . . . . . . . . . Prototype ID Bank 4 | . . . 1 . . . . . . . 3 . . . . . . . . . . . Open Door 2 | . . 1 . . . . . . . . . . . . 1 . . . . . . . Branch Access Points 1 | . . . . . . . 1 . . . . . . . . . . . . . . . Emergency Access Points 1 | . . . . . . 1 . . . . . . . . . . . . . . . . Terminal Index 2 | . 1 . . . . . . 1 . . . . . . . . . . . . . . Alert Level 4 | . . . 1 . . . 1 . . . . . 2 . . . . . . . . . Locate Traps 1 | . . . . . . . . . . . . . 1 . . . . . . . . . Dispatch Records 1 | . . . . . . . . . . . . . 1 . . . . . . . . . Hauler Manifests 1 | . . . 1 . . . . . . . . . . . . . . . . . . . Zone Layout 2 | . . . 1 1 . . . . . . . . . . . . . . . . . . Patrol Navigation 1 | . . . . . . 1 . . . . . . . . . . . . . . . . Fabricator Hacks 3 | . . . . . . . . . . . . . 3 . . . . . . . . . Network Status 1 | . . . . . . . . . . . . . 1 . . . . . . . . . Load Schematic 1 | . . . . . . . . . . . . . 1 . . . . . . . . . Build 1 | . . . . . . . . . . . . . 1 . . . . . . . . . Repair Station Hacks 2 | . . . . . . . . . . . . . 2 . . . . . . . . . Scan Component 1 | . . . . . . . . . . . . . 1 . . . . . . . . . Repair 1 | . . . . . . . . . . . . . 1 . . . . . . . . . Recycling Unit Hacks 5 | . . . 2 . 1 . 1 1 . . . . . . . . . . . . . . Report Inventory 4 | . . . 1 . 1 . 1 1 . . . . . . . . . . . . . . Retrieve Components 1 | . . . 1 . . . . . . . . . . . . . . . . . . . Scanalyzer 2 | . . . . . 2 . . . . . . . . . . . . . . . . . Insert Component 1 | . . . . . 1 . . . . . . . . . . . . . . . . . Analyze 1 | . . . . . 1 . . . . . . . . . . . . . . . . . Garrison Access Hacks 4 | . . . . . 1 . 1 1 . . . . . . . . . 1 . . . . Unlock Access 1 | . . . . . 1 . . . . . . . . . . . . . . . . . Seal Access 3 | . . . . . . . 1 1 . . . . . . . . . 1 . . . . Unauthorized Hacks 37 | . 5 . 7 . 2 . 5 4 . . . . 9 . . . . 3 . . . 2 Terminals 33 | . 5 . 7 . 2 . 5 3 . . . . 6 . . . . 3 . . . 2 Botnet 3 | . 1 . 1 . . . . . . . . . 1 . . . . . . . . . Operators 1 | . . . 1 . . . . . . . . . . . . . . . . . . . Skim 27 | . 4 . 5 . 2 . 5 3 . . . . 5 . . . . 3 . . . . Sabotage 2 | . . . . . . . . . . . . . . . . . . . . . . 2 Fabricators 4 | . . . . . . . . 1 . . . . 3 . . . . . . . . . Report 1 | . . . . . . . . . . . . . 1 . . . . . . . . . Liberate 1 | . . . . . . . . . . . . . 1 . . . . . . . . . Fabnet 2 | . . . . . . . . 1 . . . . 1 . . . . . . . . . Repair Stations . | . . . . . . . . . . . . . . . . . . . . . . . Recycling Units . | . . . . . . . . . . . . . . . . . . . . . . . Scanalyzers . | . . . . . . . . . . . . . . . . . . . . . . . Garrison Access . | . . . . . . . . . . . . . . . . . . . . . . . Data Cores Recovered 1 | . . . 1 . . . . . . . . . . . . . . . . . . . Used . | . . . . . . . . . . . . . . . . . . . . . . . Hacking Detections 45 | . 4 . 8 1 5 2 7 6 . . . 1 7 . . . . 4 . . . . Full Trace Events 4 | . . . . 1 . . . . . . . 1 1 . . . . . . . . 1 Feedback Events . | . . . . . . . . . . . . . . . . . . . . . . . Feedback Blocked . | . . . . . . . . . . . . . . . . . . . . . . . Robot Schematics Acquired 6 | . . . . . . . . . . . 3 . . . . 3 . . . . . . Robots Built . | . . . . . . . . . . . . . . . . . . . . . . . Authchips . | . . . . . . . . . . . . . . . . . . . . . . . Time . | . . . . . . . . . . . . . . . . . . . . . . . Total Robot Build Rating . | . . . . . . . . . . . . . . . . . . . . . . . Part Schematics Acquired 26 | . . . . . 1 . . . . . 13 . . . . 12 . . . . . . Parts Built . | . . . . . . . . . . . . . . . . . . . . . . . Authchips . | . . . . . . . . . . . . . . . . . . . . . . . Time 152 | . . . . . . . . . . . . . 152 . . . . . . . . . Total Part Build Rating . | . . . . . . . . . . . . . . . . . . . . . . . Parts Repaired 1 | . . . . . . . . . . . . . 1 . . . . . . . . . Time 26 | . . . . . . . . . . . . . 26 . . . . . . . . . Parts Recycled . | . . . . . . . . . . . . . . . . . . . . . . . Recycled Matter . | . . . . . . . . . . . . . . . . . . . . . . . Retrieved Matter . | . . . . . . . . . . . . . . . . . . . . . . . Retrieved Components 9 | . . . 9 . . . . . . . . . . . . . . . . . . . Parts Scanalyzed 1 | . . . . . 1 . . . . . . . . . . . . . . . . . Part Schematics Acquired 1 | . . . . . 1 . . . . . . . . . . . . . . . . . Parts Damaged . | . . . . . . . . . . . . . . . . . . . . . . . Bothacking | -11 -10 -10 -9 -9 -8 -8 -8 -7 -7 -7 -7 -6 -6 -6 -6 -6 -5 -5 -5 -5 -5 -5 ------------ Run | Yrd Mat Min Mat Min Mat Gar Mat Fac Low Low Dat Pro Fac Low Low Zio Pro Fac Ext Cet Arc Hub Used RIF Installer . | . . . . . . . . . . . . . . . . . . . . . . . Robots Hacked 7 | . . . . . . . . . . . . . 2 . . 1 . 3 . . . 1 Non-combat . | . . . . . . . . . . . . . . . . . . . . . . . Combat 7 | . . . . . . . . . . . . . 2 . . 1 . 3 . . . 1 Robot Hacks Applied . | . . . . . . . . . . . . . . . . . . . . . . . Relay Couplers Released 12 | . . . . . . 12 . . . . . . . . . . . . . . . . Machine Destruction 12 | . . . . . . 12 . . . . . . . . . . . . . . . . Fabnet Peak Effective % 4 | . . . . . . . . . . . . 3 3 3 3 3 4 4 4 4 4 4 Autooverrided 7 | . . . . . . . . . . . . . 2 . . 1 . 3 . . . 1 Robots Rewired 21 | . . . . . . . . . . . . . . . . . . . 21 . . . Allies Hacked 2 | . . . . . . . . . . . . . . . . . 1 . 1 . . . Hacks Repelled . | . . . . . . . . . . . . . . . . . . . . . . . Allies | -11 -10 -10 -9 -9 -8 -8 -8 -7 -7 -7 -7 -6 -6 -6 -6 -6 -5 -5 -5 -5 -5 -5 -------- Run | Yrd Mat Min Mat Min Mat Gar Mat Fac Low Low Dat Pro Fac Low Low Zio Pro Fac Ext Cet Arc Hub Total Allies 43 | . . 2 . 1 . . . . . . . 1 2 . . 6 . 3 27 . . 1 Largest Group 16 | . . 2 2 1 1 . . . . . . 1 1 . . 5 5 1 16 15 8 1 Highest-Rated Group 565 | . . 46 46 26 26 . . . . . . 96 96 . . 126 115 29 565 546 332 29 Highest-Rated Ally 159 | . . 31 31 26 26 . . . . . . 96 96 . . 56 31 29 159 159 159 29 Warlord Squad Rendezvous 1 | . . . . . . . . . . . . . 1 . . . . . . . . . Muscle 1 | . . . . . . . . . . . . . 1 . . . . . . . . . Total Orders 14 | . . . . . . . . . . . . . 2 1 3 . . 2 4 . . 2 EXPLORE 4 | . . . . . . . . . . . . . 1 1 2 . . . . . . . RETURN 10 | . . . . . . . . . . . . . 1 . 1 . . 2 4 . . 2 Ally Attacks 325 | . . . 9 8 . . . . . . . 30 14 . . . 26 7 157 51 18 5 Total Damage 6851 | . . . 170 147 . . . . . . . 1096 405 . . . 416 123 2925 1162 312 95 Kills 59 | . . . 2 3 . . . . . . . 8 1 . . . 1 . 28 11 5 . Allies Corrupted . | . . . . . . . . . . . . . . . . . . . . . . . Allies Melted 1 | . . . . . . . . . . . . . . . . . 1 . . . . . Intel | -11 -10 -10 -9 -9 -8 -8 -8 -7 -7 -7 -7 -6 -6 -6 -6 -6 -5 -5 -5 -5 -5 -5 ------- Run | Yrd Mat Min Mat Min Mat Gar Mat Fac Low Low Dat Pro Fac Low Low Zio Pro Fac Ext Cet Arc Hub Robot Analysis Total 2 | . . . 1 . . . 1 . . . . . . . . . . . . . . . Derelict Logs Recovered 12 | . . 1 . 1 . . . . 3 . . 2 . 1 2 1 1 . . . . . Drone Launches 15 | . . . . . . . . . . . . . 2 1 4 . . 2 4 . . 2 Drone Recoveries 12 | . . . . . . . . . . . . . 1 . 3 . . 2 4 . . 2 Exploration | -11 -10 -10 -9 -9 -8 -8 -8 -7 -7 -7 -7 -6 -6 -6 -6 -6 -5 -5 -5 -5 -5 -5 ------------- Run | Yrd Mat Min Mat Min Mat Gar Mat Fac Low Low Dat Pro Fac Low Low Zio Pro Fac Ext Cet Arc Hub Turns Passed 26234 | 62 960 718 1724 213 1116 1214 2220 1674 876 1146 174 1055 3228 455 895 3121 1620 1143 1609 542 71 398 Spaces Moved 10981 | 38 605 282 889 121 525 539 837 599 351 453 75 377 1283 285 349 1378 570 392 611 264 45 113 Core 6 | 3 . . . . . . . . . . . . . . . . . . . . . 3 Treads 7375 | . . 223 842 121 525 539 837 599 351 453 75 377 1172 . 13 . . 218 611 264 45 110 Legs 1572 | 35 605 59 47 . . . . . . . . . 41 . 115 . 496 174 . . . . Wheels 2028 | . . . . . . . . . . . . . 70 285 221 1378 74 . . . . . Hover . | . . . . . . . . . . . . . . . . . . . . . . . Flight . | . . . . . . . . . . . . . . . . . . . . . . . Fastest Speed 50 | 50 120 120 160 160 160 160 158 225 230 230 235 225 151 155 155 225 240 190 160 160 160 50 Average Speed 205 | 114 120 214 161 160 160 171 216 232 231 233 235 233 225 155 233 225 261 250 195 169 160 158 Slowest Speed 560 | 120 190 240 190 160 160 240 242 238 232 305 235 238 260 155 560 225 330 400 243 320 160 160 Overloaded Moves . | . . . . . . . . . . . . . . . . . . . . . . . Propulsion Burnouts . | . . . . . . . . . . . . . . . . . . . . . . . Robots Hopped 2 | . . . . . . . . . . . . . . . . . . . 2 . . . Cave-ins Triggered . | . . . . . . . . . . . . . . . . . . . . . . . Exploration Rate (%) 54 | 3 90 55 67 32 52 74 70 22 59 59 68 54 27 59 54 85 75 13 77 80 65 18 Regions Visited 22 Branch Regions 14 Pre-discovered Areas 8 | . . 1 . 1 . . 1 . 3 . 1 1 . . . . . . . . . . Known Exits Taken 10 | . . . 1 1 1 . 1 . . . . . 1 1 1 . 1 . 1 . 1 . Unknown Exits Taken 11 | 1 1 1 . . . . . 1 1 1 1 1 . . . 1 . 1 . 1 . . Scrap Searched 19 | . . 1 . . . . . . 4 3 . 1 . 1 4 3 2 . . . . . Spaces Dug 4 | . . . . . . . . 4 . . . . . . . . . . . . . . Terrain Destroyed 242 | . . . 8 . 14 18 1 25 20 5 . 89 29 . 9 . 2 1 5 . . 16 Melee 4 | . . . . . . . . 4 . . . . . . . . . . . . . . Projectile 36 | . . . . . . . 1 . . 5 . 7 . . . . 2 . 5 . . 16 AOE 201 | . . . 8 . 14 18 . 21 20 . . 82 29 . 9 . . . . . . . Terrain Rammed . | . . . . . . . . . . . . . . . . . . . . . . . Walls Destroyed . | . . . . . . . . . . . . . . . . . . . . . . . Machines Disabled . | . . . . . . . . . . . . . . . . . . . . . . . Actions | -11 -10 -10 -9 -9 -8 -8 -8 -7 -7 -7 -7 -6 -6 -6 -6 -6 -5 -5 -5 -5 -5 -5 --------- Run | Yrd Mat Min Mat Min Mat Gar Mat Fac Low Low Dat Pro Fac Low Low Zio Pro Fac Ext Cet Arc Hub Total 13186 | 51 734 346 1065 135 686 676 1153 729 386 492 74 461 1481 294 392 1398 627 472 937 338 44 215 Wait 385 | . 29 12 14 12 26 10 168 9 . . . . 22 1 . . 2 14 14 33 . 19 Move 10955 | 37 604 281 888 120 524 538 836 598 350 452 74 376 1282 284 348 1377 569 391 606 263 44 113 Hop 2 | . . . . . . . . . . . . . . . . . . . 2 . . . Pick Up 217 | 5 10 12 23 . 21 6 24 9 4 5 . 6 44 1 5 3 2 5 19 9 . 4 Fast Attach 102 | 6 7 3 7 . 1 5 4 8 3 1 . 3 13 2 3 6 5 5 15 3 . 2 Attach 112 | 1 4 2 3 . 8 8 7 9 1 6 . 8 15 1 3 2 1 4 13 3 . 13 Detach 3 | . . . . . . . . 1 . . . . 1 . . . . . 1 . . . Swap 187 | . 7 5 21 . 13 16 13 12 5 2 . 12 18 3 10 2 8 11 17 7 . 5 Drop 178 | . 8 3 35 . 17 3 30 7 6 . . 4 17 1 4 7 4 6 15 8 . 3 Fire 782 | 1 63 28 70 3 68 81 62 68 17 26 . 49 63 1 13 . 36 35 34 9 . 55 Melee 24 | . . . . . . 9 . 4 . . . . . . 6 1 . . . 3 . 1 Ram . | . . . . . . . . . . . . . . . . . . . . . . . Kick 5 | 1 2 . . . . . . . . . . . 1 . . . . 1 . . . . Crush 35 | . . . 4 . 1 . 9 4 . . . . 5 . . . . . 12 . . . Escape Stasis . | . . . . . . . . . . . . . . . . . . . . . . . Rewire 196 | . . . . . 7 . . . . . . . . . . . . . 189 . . . Trap 3 | . . . . . . . . . . . . 3 . . . . . . . . . . Miscellaneous . | . . . . . . . . . . . . . . . . . . . . . . . Route ------- -11/Scrapyard -10/Materials (discovered 4 exits: *Mat x3 / *Min) -10/Mines -9/Materials (discovered 5 exits: *Mat x3 / *Min / [*Sto]) -9/Mines -8/Materials (discovered 3 exits: *Fac x2 / Gar) -8/Garrison (discovered 3 exits: *Mat x3) -8/Materials (discovered 3 exits: *Fac x3) -7/Factory -7/Lower Caves -7/Lower Caves -7/Data Miner -6/Proximity Caves -6/Factory (discovered 3 exits: Fac x2 / *Low) -6/Lower Caves -6/Lower Caves -6/Zion -5/Proximity Caves -5/Factory (discovered 2 exits: Fac / *Ext) -5/Extension (discovered 3 exits: *Fac x2 / *Cet) -5/Cetus (discovered 2 exits: *Fac / *Arc) -5/Archives (discovered 2 exits: *Hub x2) -5/Hub_04(d) (discovered 4 exits: Fac x4) History --------- Turn | Location | Event 9 | -11/Scrapyard | Discovered new exit (range 16) 63 | -11/Scrapyard | Entered Materials 273 | -10/Materials | Discovered new exit (range 6) 310 | -10/Materials | Build established: Mutant 612 | -10/Materials | Discovered new exit (range 7) 781 | -10/Materials | Discovered new exit (range 5) 1009 | -10/Materials | Discovered new exit (range 12) 1023 | -10/Materials | Entered Mines 1078 | -10/Mines | Lost 4 parts (1p1u2w) 1120 | -10/Mines | Met a Derelict who couldn't figure out how to use a Trap Extractor 1121 | -10/Mines | Core integrity fell below 50% 1274 | -10/Mines | Learned Materials machine intel 1322 | -10/Mines | Found a hidden stash of uninstalled traps 1354 | -10/Mines | Learned location of Storage (-9) 1686 | -10/Mines | Discovered new exit (range 3) 1741 | -10/Mines | Entered Materials 1741 | -9/Materials | Accompanied by 2 allies 1741 | -9/Materials | Evolved 2 slots: Propulsion x2 1742 | -9/Materials | Loaded intel: 77 machine locations 1746 | -9/Materials | Led the pair of lost Derelicts to an unsafe place 2208 | -9/Materials | Build established: Scavenger-Mutant 2291 | -9/Materials | Discovered new exit (range 8) 2522 | -9/Materials | Discovered new exit (range 16) 2715 | -9/Materials | Discovered new exit (range 10) 2748 | -9/Materials | Central database locked down 2886 | -9/Materials | Learned Storage garrison access intel 2940 | -9/Materials | Identified exit to Mines 2940 | -9/Materials | Identified exit to Materials 3018 | -9/Materials | Learned location of 1 exit from Recycling 3042 | -9/Materials | Learned location of 1 exit from Storage 3076 | -9/Materials | Learned Materials emergency access door positions 3102 | -9/Materials | Core integrity fell below 50% 3118 | -9/Materials | Loaded intel: 19 trap records 3465 | -9/Materials | Entered Mines 3469 | -9/Mines | Escorted by a lone wolf Derelict 3477 | -9/Mines | Build established: Mutant 3503 | -9/Mines | A weapon hastily lodged in a ceiling crevice suddenly fell to the ground 3518 | -9/Mines | Met a Derelict bent on vengeance 3522 | -9/Mines | Learned Materials non-interactive machine intel 3630 | -9/Mines | Discovered exit to Materials (range 11) 3657 | -9/Mines | Assembled infested the area 3678 | -9/Mines | Entered Materials 3678 | -8/Materials | Accompanied by 1 ally 3678 | -8/Materials | Evolved 2 slots: Utility x2 3680 | -8/Materials | Loaded intel: 30 non-interactive machine locations 4273 | -8/Materials | Lost 6 parts (2n2u2w) 4342 | -8/Materials | Discovered new exit (range 15) 4640 | -8/Materials | Discovered new exit (range 13) 4778 | -8/Materials | Identified exit to Garrison 4794 | -8/Materials | Entered Garrison 4814 | -8/Garrison | Triggered checkpoint 4859 | -8/Garrison | Garrison Relay disabled 5056 | -8/Garrison | Triggered checkpoint 5221 | -8/Garrison | Discovered new exit (range 10) 5252 | -8/Garrison | Triggered checkpoint 5358 | -8/Garrison | Triggered checkpoint 5456 | -8/Garrison | Triggered checkpoint 5501 | -8/Garrison | Garrison Relay disabled 5536 | -8/Garrison | Discovered new exit (range 11) 5640 | -8/Garrison | Triggered checkpoint 5773 | -8/Garrison | Build established: Scavenger-Mutant 5788 | -8/Garrison | Lost 5 parts (1p2n1u1w) 5851 | -8/Garrison | Discovered new exit (range 10) 6008 | -8/Garrison | Entered Materials 6190 | -8/Materials | Core integrity fell below 50% 6761 | -8/Materials | Build established: Mutant 6967 | -8/Materials | Lost 3 parts (1n1u1w) 7353 | -8/Materials | Discovered new exit (range 9) 7708 | -8/Materials | Garrison activated, responded to threat 7730 | -8/Materials | Discovered new exit (range 9) 7835 | -8/Materials | Learned Factory stockpile data 7898 | -8/Materials | Identified exit to Factory 7950 | -8/Materials | Learned 4 Factory zone layouts 7991 | -8/Materials | Learned 4 Factory zone layouts 8021 | -8/Materials | Learned location of Lower Caves (-6) 8039 | -8/Materials | Learned location of 1 exit from Storage 8069 | -8/Materials | Learned Factory trap positions 8111 | -8/Materials | Learned Factory trap positions 8165 | -8/Materials | Learned 2 Lower Caves zone layouts 8228 | -8/Materials | Entered Factory 8228 | -7/Factory | Evolved 2 slots: Power x1, Utility x1 8230 | -7/Factory | Loaded intel: 87 trap records 8570 | -7/Factory | Destroyed 8 combat bots 8891 | -7/Factory | Lost 3 parts (1p1n1u) 9262 | -7/Factory | Garrison activated, responded to threat 9716 | -7/Factory | Discovered new exit (range 8) 9828 | -7/Factory | First assault squad dispatched 9902 | -7/Factory | Entered Lower Caves 9941 | -7/Lower Caves | Met a Warlord Commander 9942 | -7/Lower Caves | Learned location of Warlord (-4) 9943 | -7/Lower Caves | Warlord Commander delivered Encrypted Comm Array 9952 | -7/Lower Caves | Found Encrypted Comm Array 10436 | -7/Lower Caves | Learned location of Zion (-6) 10584 | -7/Lower Caves | Encountered a Warlord checkpoint 10631 | -7/Lower Caves | Discovered new exit (range 7) 10706 | -7/Lower Caves | Learned location of Extension (-5) 10713 | -7/Lower Caves | Learned Factory emergency access door positions 10778 | -7/Lower Caves | Entered another Lower Caves area 11055 | -7/Lower Caves | Encountered a Warlord checkpoint 11351 | -7/Lower Caves | Spotted B-75 Beast 11410 | -7/Lower Caves | Destroyed B-75 Beast 11441 | -7/Lower Caves | Lost 5 parts (3n2u) 11895 | -7/Lower Caves | Discovered new exit (range 5) 11924 | -7/Lower Caves | Entered Data Miner 11924 | -7/Data Miner | Discovered new exit (range 6) 11969 | -7/Data Miner | Met Data Miner 12026 | -7/Data Miner | Learned location of Section 7 (-2) 12026 | -7/Data Miner | Acquired the access code to Warlord's prototype stash 12049 | -7/Data Miner | Received God Mode back door access code from Data Miner 12098 | -7/Data Miner | Entered Proximity Caves 12129 | -6/Proximity Caves | Spotted B-75 Beast 12148 | -6/Proximity Caves | Core integrity fell below 50% 12166 | -6/Proximity Caves | Destroyed B-75 Beast 12222 | -6/Proximity Caves | Learned 4 Factory zone layouts 12339 | -6/Proximity Caves | Learned Factory stockpile data 12799 | -6/Proximity Caves | Attracted the attention of an 0b10 base 12821 | -6/Proximity Caves | Escorted by Enhanced Grunt 12846 | -6/Proximity Caves | Core integrity fell below 20% 12883 | -6/Proximity Caves | Lost 9 parts (1p3n3u2w) 12897 | -6/Proximity Caves | Learned location of 2 exits from Lower Caves 13092 | -6/Proximity Caves | Discovered new exit (range 10) 13153 | -6/Proximity Caves | Entered Factory 13153 | -6/Factory | Accompanied by 1 ally 13153 | -6/Factory | Evolved 2 slots: Propulsion x1, Weapon x1 13155 | -6/Factory | Loaded intel: 90 trap records 13400 | -6/Factory | Repaired Huge Storage Unit 13463 | -6/Factory | Build established: Gunner 14690 | -6/Factory | Joined by Warlord Muscle squad 14768 | -6/Factory | Learned 2 Upper Caves zone layouts 14811 | -6/Factory | Learned 2 Upper Caves zone layouts 14843 | -6/Factory | Learned Factory stockpile data 14863 | -6/Factory | Learned 2 Proximity Caves zone layouts 14872 | -6/Factory | Learned location of 2 exits from Proximity Caves 14873 | -6/Factory | Learned location of 1 exit from Upper Caves 14874 | -6/Factory | Identified exit to Lower Caves 14874 | -6/Factory | Identified exit to Factory 14876 | -6/Factory | Learned location of 1 exit from Extension 14886 | -6/Factory | Learned location of 1 exit from Extension 14907 | -6/Factory | Learned location of 2 exits from Archives 14936 | -6/Factory | Learned 2 Extension zone layouts 15942 | -6/Factory | Garrison activated, responded to threat 16002 | -6/Factory | Lost 6 parts (1p2n3w) 16096 | -6/Factory | Cargo convoy interrupted 16146 | -6/Factory | Lost 5 allies 16187 | -6/Factory | Lost 10 parts (1p5n1u3w) 16204 | -6/Factory | Build established: Scavenger-Gunner 16353 | -6/Factory | Local machine network offline 16381 | -6/Factory | Entered Lower Caves 16382 | -6/Lower Caves | Identified exit to Lower Caves 16479 | -6/Lower Caves | Learned location of 1 exit from Proximity Caves 16508 | -6/Lower Caves | System corruption reached 10% 16642 | -6/Lower Caves | Build established: Scavenger-Mutant 16836 | -6/Lower Caves | Entered another Lower Caves area 16837 | -6/Lower Caves | Identified exit to Zion 16927 | -6/Lower Caves | Attracted the attention of an 0b10 checkpoint 16951 | -6/Lower Caves | Build established: Scavenger-Gunner 16968 | -6/Lower Caves | Lost 3 parts (1p1n1w) 17424 | -6/Lower Caves | Lost 3 parts (2n1u) 17630 | -6/Lower Caves | Learned Factory trap positions 17638 | -6/Lower Caves | Learned Factory trap positions 17731 | -6/Lower Caves | Entered Zion 17833 | -6/Zion | System corruption cleaned by Quarantine Array 17843 | -6/Zion | Build established: Mutant 17871 | -6/Zion | Gained Derelict followers 17990 | -6/Zion | Discovered new exit (range 14) 18008 | -6/Zion | Given the Hacking Drone Bay 18010 | -6/Zion | Found Prototype Device 18394 | -6/Zion | Found Prototype Device 18394 | -6/Zion | Identified Phasing AFG 18999 | -6/Zion | Visited the Megawrench Repair Shop 19105 | -6/Zion | Met Imprinter 19559 | -6/Zion | Learned 4 Factory zone layouts 20232 | -6/Zion | Gained Derelict followers 20368 | -6/Zion | Megawrench repaired 12 parts 20570 | -6/Zion | Found Prototype Processor 20570 | -6/Zion | Identified Exp. Melee Analysis Suite 20574 | -6/Zion | Found Prototype Hackware 20574 | -6/Zion | Identified Exp. Hacking Suite 20578 | -6/Zion | Found Prototype Processor 20578 | -6/Zion | Identified Exp. Armor Integrity Analyzer 20852 | -6/Zion | Entered Proximity Caves 20852 | -5/Proximity Caves | Accompanied by 5 allies 20900 | -5/Proximity Caves | Lost 5 allies 20900 | -5/Proximity Caves | Core integrity fell below 50% 21093 | -5/Proximity Caves | Attracted the attention of an 0b10 checkpoint 21154 | -5/Proximity Caves | Lost 5 parts (2n1u2w) 21431 | -5/Proximity Caves | Spotter reported a threat 21484 | -5/Proximity Caves | Spotter reported a threat 21638 | -5/Proximity Caves | Spotted B-75 Beast 21655 | -5/Proximity Caves | Build established: Scavenger-Mutant 22088 | -5/Proximity Caves | Build established: Scavenger-Gunner 22472 | -5/Proximity Caves | Entered Factory 22472 | -5/Factory | Evolved 2 slots: Utility x2 22473 | -5/Factory | Identified exit to Factory 22474 | -5/Factory | Loaded intel: 124 trap records 22757 | -5/Factory | Lost 3 parts (1p2n) 22892 | -5/Factory | Build established: Gunner 23137 | -5/Factory | Identified Hacking Drone Bay 23393 | -5/Factory | Build established: Mutant 23507 | -5/Factory | Discovered new exit (range 10) 23615 | -5/Factory | Entered Extension 23616 | -5/Extension | Identified exit to Cetus 23742 | -5/Extension | Lost 4 parts (1n3w) 23861 | -5/Extension | Build established: Scavenger-Gunner 23931 | -5/Extension | Rescued a captive Derelict 23931 | -5/Extension | Rescued a captive Derelict 24516 | -5/Extension | Spotted B-75 Beast 24521 | -5/Extension | Spotted B-75 Beast 24532 | -5/Extension | Allies destroyed B-75 Beast 24538 | -5/Extension | Allies destroyed B-75 Beast 24575 | -5/Extension | Lost 5 allies 24632 | -5/Extension | Build established: Commander-Gunner 24695 | -5/Extension | Lost 5 parts (2n1u2w) 24740 | -5/Extension | Disrupted transfer network 24763 | -5/Extension | Rescued a captive Derelict 24847 | -5/Extension | Rescued a captive Derelict 25091 | -5/Extension | Lost 7 parts (1p4n2w) 25115 | -5/Extension | Rescued A7 25142 | -5/Extension | Rescued a captive Derelict 25198 | -5/Extension | Disrupted transfer network 25224 | -5/Extension | Entered Cetus 25224 | -5/Cetus | Accompanied by 15 allies (A7) 25229 | -5/Cetus | Acquired a Cetus Manufacturing Module code from A7 25236 | -5/Cetus | Lost 3 parts (1p1n1u) 25254 | -5/Cetus | Spotted Cetus Guard 25254 | -5/Cetus | Spotted Cetus Guard 25256 | -5/Cetus | Spotted Cetus Guard 25256 | -5/Cetus | Spotted Cetus Guard 25261 | -5/Cetus | Allies destroyed Cetus Guard 25269 | -5/Cetus | Destroyed Cetus Guard 25270 | -5/Cetus | Allies destroyed Cetus Guard 25275 | -5/Cetus | Allies destroyed Cetus Guard 25513 | -5/Cetus | Escorted A7 to Cetus Mainframe 25552 | -5/Cetus | Discovered new exit (range 16) 25580 | -5/Cetus | Spotted Cetus Guard 25581 | -5/Cetus | Spotted Cetus Guard 25583 | -5/Cetus | Spotted Cetus Guard 25584 | -5/Cetus | Spotted Cetus Guard 25598 | -5/Cetus | Allies destroyed Cetus Guard 25602 | -5/Cetus | Discovered exit to Factory (range 15) 25603 | -5/Cetus | Destroyed Cetus Guard 25607 | -5/Cetus | Allies destroyed Cetus Guard 25610 | -5/Cetus | Allies destroyed Cetus Guard 25618 | -5/Cetus | Met Revision 17 25630 | -5/Cetus | System corruption reached 10% 25635 | -5/Cetus | Lost 5 allies 25766 | -5/Cetus | Entered Archives 25766 | -5/Archives | Accompanied by 8 allies (A7) 25767 | -5/Archives | Identified exit to Hub_04(d) 25771 | -5/Archives | Received a hacking code to weaken MAIN.C 25792 | -5/Archives | Met Zhirov 25798 | -5/Archives | Reinforcements dispatched to Archives 25810 | -5/Archives | Read partially decrypted archive contents 25837 | -5/Archives | Entered Hub_04(d) 25881 | -5/Hub_04(d) | Build established: Scavenger-Gunner 25990 | -5/Hub_04(d) | Destroyed 7 combat bots 25999 | -5/Hub_04(d) | Lost 5 parts (3n1u1w) 26003 | -5/Hub_04(d) | Spotted B-75 Beast 26023 | -5/Hub_04(d) | Destroyed B-75 Beast 26070 | -5/Hub_04(d) | Network Hub disabled 26094 | -5/Hub_04(d) | Spotted Lightning 26137 | -5/Hub_04(d) | First assault squad dispatched 26154 | -5/Hub_04(d) | Spotted Lightning 26156 | -5/Hub_04(d) | Spotted Lightning 26156 | -5/Hub_04(d) | Spotted Lightning 26189 | -5/Hub_04(d) | Incoming assault squad redirected 26201 | -5/Hub_04(d) | Destroyed Lightning 26205 | -5/Hub_04(d) | Destroyed Lightning 26212 | -5/Hub_04(d) | System corruption reached 30% 26221 | -5/Hub_04(d) | Core integrity fell below 50% 26232 | -5/Hub_04(d) | Core integrity fell below 20% 26235 | -5/Hub_04(d) | Destroyed by Y-64 Sentinel with KE Penetrator Last Messages --------------- 26214_ Slug penetrates L-41 Fighter. 26217_ Centrium Heavy Treads destroyed. 26218_ Force Field severed. 26218_ Penetrated by EMDS Slug. 26220_ Slug penetrates Lightning. 26221_ Adv. KE Penetrator destroyed. 26222_ Power failure, Fission Core shutdown. 26223_ Fission Core destroyed. 26223_ Slug penetrates Lightning. 26224_ Centrium Medium Armor Plating destroyed. 26224_ KE Penetrator destroyed. 26225_ Acquired Centrium Medium Armor Plating. 26225_ Penetrated by EMDS Slug. 26226_ Penetrated by Slug. 26230_ Acquired Lrg. Storage Unit. 26231_ Penetrated by EMDS Slug. 26232_ Penetrated by Slug. 26233_ Centrium Medium Armor Plating severed. 26235_ Imp. Thermal Shield destroyed. 26235_ Phasing Sabre destroyed. Map ----- +----------------------------------------------------+ | ?????????????????????????????????????????????????? | | ??????